bitfinex-derivatives/quotes_SOLF0:USTF0_20250911
["timestamp","ask_amount","ask_price","bid_price","bid_amount"]
[1757565908320,0.03241249,223.73,223.69,0.03051703]
[1757565908521,7.64,223.72,223.69,0.03051703]
[1757565908927,0.03241249,223.73,223.69,0.03051703]
[1757565909231,7.64,223.72,223.69,0.03051703]
[1757565909423,0.03241249,223.73,223.69,0.03051703]
[1757565909618,7.64,223.72,223.69,0.03051703]
[1757565909821,0.03241249,223.73,223.69,0.03051703]
[1757565910017,7.64,223.72,223.69,0.03051703]
[1757565910430,1.67859393,223.73,223.69,0.03051703]
[1757565910817,7.64,223.72,223.69,0.03051703]
[1757565911223,1.67859393,223.73,223.69,0.03051703]
[1757565911622,7.64,223.72,223.69,0.03051703]
[1757565911822,7.64,223.7,223.69,0.03051703]
[1757565912419,1.64618144,223.71,223.61,22.76]
[1757565912624,1.64618144,223.68,223.61,22.76]
[1757565912825,1.64618144,223.68,223.6,8.61618144]
[1757565912826,7.64,223.67,223.6,6.97]
[1757565913626,0.03226573,223.66,223.6,6.97]
[1757565916433,0.03226573,223.66,223.6,8.61618144]
[1757565917430,0.03226573,223.66,223.61,1.64618144]
[1757565917731,0.03226573,223.66,223.55,6.97]
[1757565917923,0.03226573,223.66,223.62,6.97]
[1757565918432,0.03226573,223.66,223.61,1.64618144]
[1757565918824,0.03226573,223.66,223.62,6.97]
[1757565919532,0.03226573,223.66,223.6,1.64618144]
[1757565920423,0.03226573,223.66,223.61,6.97]
[1757565920632,0.03226573,223.66,223.6,1.64618144]
[1757565920827,0.03226573,223.66,223.61,6.97]
[1757565921533,0.03226573,223.66,223.54,6.97]
[1757565921726,0.03226573,223.66,223.6,1.64618144]
[1757565922334,0.03226573,223.66,223.6,6.97]
[1757565922528,7.67226573,223.66,223.6,6.97]
[1757565923030,0.03226573,223.66,223.64,1.64618144]
[1757565923333,0.03226573,223.66,223.65,6.97]
[1757565923735,7.64,223.69,223.62,8.61618144]
[1757565923924,0.03329457,223.68,223.62,8.61618144]
[1757565924331,0.03329457,223.68,223.66,1.64618144]
[1757565924530,0.03329457,223.68,223.67,6.97]
[1757565926936,0.03329457,223.68,223.65,6.97]
[1757565927237,0.03329457,223.68,223.64,1.64618144]
[1757565927426,0.03329457,223.68,223.65,7.13]
[1757565927627,0.03329457,223.68,223.62,7.13]
[1757565927827,91.3791165,223.77,223.64,7.13]
[1757565927828,1.64618144,223.72,223.64,7.13]
[1757565928033,0.02870615,223.67,223.66,7.13]
[1757565928339,9.17618144,223.75,223.66,7.13]
[1757565928734,0.03394173,223.69,223.66,7.13]
[1757565928939,0.03394173,223.69,223.68,7.13]
[1757565929941,0.03394173,223.69,223.57,7.13]
[1757565930141,1.68012317,223.69,223.62,1.64618144]
[1757565930347,1.68012317,223.69,223.63,7.13]
[1757565930549,1.64618144,223.69,223.63,7.13]
[1757565930750,0.0313521,223.68,223.62,1.64618144]
[1757565931339,0.0313521,223.68,223.63,7.13]
[1757565931752,0.0313521,223.68,223.56,7.13]
[1757565931945,0.0313521,223.68,223.63,7.13]
[1757565932546,0.0313521,223.68,223.62,1.64618144]
[1757565933051,0.0313521,223.68,223.63,7.13]
[1757565933052,7.53,223.67,223.63,7.13]
[1757565933452,0.0313521,223.68,223.62,7.13]
[1757565933752,1.64618144,223.7,223.62,7.13]
[1757565933954,0.03110381,223.67,223.62,7.13]
[1757565934553,0.03110381,223.67,223.56,7.13]
[1757565934752,0.03110381,223.67,223.62,7.13]
[1757565934955,0.03110381,223.67,223.64,7.13]
[1757565935447,0.03110381,223.67,223.63,1.64618144]
[1757565935949,0.03110381,223.67,223.64,7.13]
[1757565936347,0.03110381,223.67,223.63,1.64618144]
[1757565936549,0.03110381,223.67,223.66,7.13]
[1757565939457,0.03110381,223.67,223.64,7.13]
[1757565941161,0.03110381,223.67,223.62,1.64618144]
[1757565941357,0.03110381,223.67,223.63,7.13]
[1757565941552,0.03110381,223.67,223.58,7.13]
[1757565941758,0.03110381,223.67,223.66,8.77618144]
[1757565947066,0.03110381,223.67,223.66,7.13]
[1757565947265,0.03110381,223.67,223.64,8.77618144]
[1757565947767,0.03110381,223.67,223.64,7.13]
[1757565948265,7.53,223.66,223.63,7.13]
[1757565948666,0.03110381,223.67,223.63,7.13]
[1757565948868,7.53,223.66,223.57,7.13]
[1757565949271,1.64618144,223.6,223.52,8.77618144]
[1757565949662,3.72225769,223.59,223.52,8.77618144]
[1757565949867,3.75502282,223.58,223.52,8.77618144]
[1757565950068,0.03276513,223.58,223.52,7.13]
[1757565950573,0.03276513,223.58,223.54,7.13]
[1757565951175,0.03276513,223.58,223.53,1.64618144]
[1757565951472,0.03276513,223.58,223.57,8.77618144]
[1757565951662,1.64618144,223.7,223.57,8.77618144]
[1757565951868,7.08357194,223.69,223.63,7.13]
[1757565952065,3.72220299,223.68,223.62,1.64618144]
[1757565952263,3.72220299,223.67,223.62,1.64618144]
[1757565952462,3.72220299,223.66,223.62,1.64618144]
[1757565952665,3.72220299,223.65,223.62,1.64618144]
[1757565952869,9.17618144,223.71,223.63,7.13]
[1757565953071,6.97644821,223.7,223.63,7.13]
[1757565953368,3.60371255,223.69,223.63,7.13]
[1757565953576,11.13371255,223.68,223.63,7.13]
[1757565953768,3.60371255,223.67,223.63,7.13]
[1757565954671,11.13371255,223.66,223.62,7.13]
[1757565954969,1.64618144,223.68,223.61,1.64618144]
[1757565954970,3.60371255,223.65,223.61,1.64618144]
[1757565955173,9.17618144,223.7,223.62,7.13]
[1757565955469,1.64618144,223.68,223.62,7.13]
[1757565955675,3.60347578,223.67,223.62,7.13]
[1757565955975,11.13347578,223.66,223.62,7.13]
[1757565956274,3.60347578,223.65,223.62,7.13]
[1757565956471,3.60347578,223.64,223.55,7.13]
[1757565956772,3.60324113,223.63,223.59,7.13]
[1757565956980,9.17618144,223.66,223.59,7.13]
[1757565957173,3.60324797,223.65,223.59,7.13]
[1757565957470,3.60324797,223.64,223.58,9.14618144]
[1757565957677,7.01,223.7,223.61,7.5]
[1757565957878,8.62201506,223.69,223.61,7.5]
[1757565958073,3.60339569,223.68,223.61,7.5]
[1757565958266,3.60339569,223.67,223.61,7.5]
[1757565958471,3.60339569,223.66,223.6,9.14618144]
[1757565958671,3.60339569,223.65,223.6,1.64618144]
[1757565958872,1.64618144,223.67,223.61,7.5]
[1757565959072,7.01,223.65,223.61,7.5]
[1757565960376,1.64618144,223.67,223.58,1.64618144]
[1757565960676,10.61297902,223.66,223.57,7.5]
[1757565960877,3.60297902,223.65,223.57,9.14618144]
[1757565961078,7.01,223.66,223.57,9.14618144]
[1757565961374,3.60244847,223.65,223.57,9.14618144]
[1757565961576,7.01,223.66,223.57,9.14618144]
[1757565961875,3.6023742,223.65,223.57,9.14618144]
[1757565962068,7.01,223.66,223.57,9.14618144]
[1757565962267,3.60238268,223.65,223.57,9.14618144]
[1757565962467,3.60233522,223.64,223.57,9.14618144]
[1757565962667,7.01,223.66,223.57,9.14618144]
[1757565962868,3.60262898,223.65,223.57,9.14618144]
[1757565963172,3.60262898,223.64,223.57,9.14618144]
[1757565963474,7.01,223.66,223.57,9.14618144]
[1757565963671,3.60242477,223.65,223.57,9.14618144]
[1757565963871,3.60242477,223.64,223.57,9.14618144]
[1757565964079,7.01,223.66,223.57,9.14618144]
[1757565964080,1.64618144,223.65,223.57,9.14618144]
[1757565964274,8.65618144,223.63,223.57,7.5]
[1757565964475,7.01,223.6,223.53,1.64618144]
[1757565964681,3.60231188,223.59,223.53,9.14618144]
[1757565964874,7.01,223.6,223.53,9.14618144]
[1757565965074,3.60114002,223.59,223.53,9.14618144]
[1757565965270,7.01,223.6,223.53,9.14618144]
[1757565965481,3.59998056,223.59,223.53,7.5]
[1757565965680,7.01,223.6,223.53,7.5]
[1757565965880,3.59998306,223.59,223.53,7.5]
[1757565966178,7.01,223.6,223.53,7.5]
[1757565966478,3.59894158,223.59,223.53,7.5]
[1757565966680,7.01,223.6,223.53,7.5]
[1757565966981,3.59894659,223.59,223.53,7.5]
[1757565967174,7.01,223.6,223.53,7.5]
[1757565968273,3.59769936,223.59,223.53,7.5]
[1757565968472,7.01,223.6,223.53,7.5]
[1757565968670,3.5976863,223.59,223.53,7.5]
[1757565968871,7.01,223.6,223.53,7.5]
[1757565969073,3.59754314,223.59,223.53,7.5]
[1757565969277,7.01,223.6,223.53,7.5]
[1757565970275,3.59649057,223.59,223.53,7.5]
[1757565970479,7.01,223.6,223.53,7.5]
[1757565970672,3.5955781,223.59,223.53,7.5]
[1757565970872,7.01,223.6,223.53,7.5]
[1757565971071,3.5955781,223.59,223.53,7.5]
[1757565971278,7.01,223.6,223.53,7.5]
[1757565972077,9.58477162,223.64,223.53,7.5]
[1757565972382,7.01,223.68,223.58,2.57477162]
[1757565972587,3.59554076,223.67,223.59,7.5]
[1757565972778,3.59554076,223.66,223.59,7.5]
[1757565973080,3.59554076,223.65,223.59,7.5]
[1757565973282,3.59554076,223.64,223.58,2.57477162]
[1757565973582,7.01,223.68,223.59,7.5]
[1757565973781,3.59578287,223.67,223.59,7.5]
[1757565973982,3.59578287,223.66,223.59,7.5]
[1757565974182,3.59578287,223.65,223.59,7.5]
[1757565974384,3.59578287,223.64,223.58,2.57477162]
[1757565974578,7.01,223.68,223.59,7.5]
[1757565974779,3.5969854,223.67,223.59,7.5]
[1757565974983,3.5969854,223.66,223.59,7.5]
[1757565975284,7.01,223.68,223.59,7.5]
[1757565975285,3.5969854,223.65,223.59,7.5]
[1757565975585,3.5969854,223.64,223.58,7.5]
[1757565975787,7.01,223.68,223.58,7.5]
[1757565975986,3.59768498,223.67,223.58,7.5]
[1757565976185,3.59768498,223.66,223.58,7.5]
[1757565976385,3.59768498,223.65,223.58,7.5]
[1757565976684,3.59768498,223.64,223.58,7.5]
[1757565976878,7.01,223.68,223.58,7.5]
[1757565977075,3.59893858,223.67,223.58,7.5]
[1757565977280,3.59893858,223.66,223.58,7.5]
[1757565977576,3.59893858,223.65,223.58,7.5]
[1757565977777,3.59893858,223.64,223.58,7.5]
[1757565978086,7.01,223.68,223.58,7.5]
[1757565978286,3.5994543,223.67,223.58,7.5]
[1757565978486,3.5994543,223.66,223.58,7.5]
[1757565978687,3.5994543,223.65,223.58,7.5]
[1757565978889,3.5994543,223.64,223.58,7.5]
[1757565979189,3.5994543,223.63,223.57,2.57477162]
[1757565979387,7.01,223.68,223.58,7.5]
[1757565979589,3.67245294,223.67,223.58,7.5]
[1757565979784,3.67245294,223.66,223.58,7.5]
[1757565979984,3.67245294,223.65,223.58,7.5]
[1757565980184,3.67245294,223.64,223.58,7.5]
[1757565980387,3.67245294,223.63,223.58,7.5]
[1757565980583,7.01,223.68,223.58,7.5]
[1757565980786,7.07312763,223.67,223.58,7.5]
[1757565980985,3.67476069,223.66,223.58,7.5]
[1757565981185,3.67476069,223.65,223.58,7.5]
[1757565981385,3.67476069,223.64,223.58,7.5]
[1757565981587,3.67476069,223.63,223.58,7.5]
[1757565981788,7.01,223.68,223.58,7.5]
[1757565981985,3.67553792,223.67,223.58,7.5]
[1757565982188,3.67553792,223.66,223.58,7.5]
[1757565982388,3.67553792,223.65,223.58,7.5]
[1757565982588,7.01,223.68,223.58,7.5]
[1757565982890,3.67592266,223.67,223.58,7.5]
[1757565983091,3.67592266,223.66,223.58,7.5]
[1757565983294,7.01,223.68,223.58,7.5]
[1757565983487,3.55724523,223.67,223.58,7.5]
[1757565983685,3.55724523,223.66,223.58,7.5]
[1757565983886,7.01,223.68,223.58,7.5]
[1757565984184,3.5573929,223.67,223.58,7.5]
[1757565984488,3.5573929,223.66,223.58,7.5]
[1757565984685,7.01,223.68,223.58,7.5]
[1757565984884,3.55767604,223.67,223.58,7.5]
[1757565985085,3.55767604,223.66,223.58,7.5]
[1757565985286,7.01,223.68,223.58,7.5]
[1757565985596,3.55790484,223.67,223.58,7.5]
[1757565985790,3.55790484,223.66,223.58,7.5]
[1757565985992,7.01,223.68,223.58,7.5]
[1757565986192,3.55833504,223.67,223.58,7.5]
[1757565986387,3.55833504,223.66,223.58,7.5]
[1757565986597,7.01,223.68,223.58,7.5]
[1757565986895,3.55898666,223.67,223.58,7.5]
[1757565987094,3.55898666,223.66,223.58,7.5]
[1757565987299,7.01,223.68,223.58,7.5]
[1757565987599,3.55990714,223.67,223.58,7.5]
[1757565987797,3.55990714,223.66,223.58,7.5]
[1757565987997,7.01,223.68,223.58,7.5]
[1757565988196,3.56021147,223.67,223.58,7.5]
[1757565988396,3.56021147,223.66,223.58,7.5]
[1757565988599,7.01,223.68,223.58,7.5]
[1757565988899,3.56070238,223.67,223.58,7.5]
[1757565989102,3.56070238,223.66,223.58,7.5]
[1757565989397,3.55999186,223.65,223.58,7.5]
[1757565989598,7.01,223.68,223.58,7.5]
[1757565989796,3.55998987,223.67,223.58,7.5]
[1757565989995,3.55998987,223.66,223.58,7.5]
[1757565990195,3.55998987,223.65,223.58,7.5]
[1757565990396,7.01,223.68,223.58,7.5]
[1757565990598,3.56114925,223.67,223.58,7.5]
[1757565990796,3.56114925,223.66,223.58,7.5]
[1757565990998,3.56114925,223.65,223.58,7.5]
[1757565991299,3.56178148,223.64,223.58,7.5]
[1757565991500,2.57477162,223.67,223.58,7.5]
[1757565991501,7.59,223.62,223.58,7.5]
[1757565991702,7.59,223.66,223.58,7.5]
[1757565992003,7.59,223.64,223.58,7.5]
[1757565992202,7.59,223.62,223.58,7.5]
[1757565993302,2.57477162,223.67,223.52,2.57477162]
[1757565993503,14.55742623,223.66,223.53,7.31]
[1757565993802,7.59,223.64,223.53,7.31]
[1757565994001,3.56261626,223.63,223.53,7.31]
[1757565994197,3.56261626,223.62,223.53,7.31]
[1757565994395,3.56261626,223.61,223.53,7.31]
[1757565994595,7.59,223.64,223.53,7.31]
[1757565994800,7.59,223.62,223.53,7.31]
[1757565995102,3.56249284,223.61,223.53,7.31]
[1757565998916,7.59,223.6,223.53,7.31]
[1757565999908,3.5625799,223.59,223.53,7.31]
[1757566000108,7.59,223.6,223.53,7.31]
[1757566000409,3.56259883,223.59,223.53,7.31]
[1757566000610,7.59,223.6,223.53,7.31]
[1757566000808,3.56267182,223.59,223.53,7.31]
[1757566001111,3.56256868,223.58,223.51,7.31]
[1757566001407,7.59,223.6,223.51,7.31]
[1757566001605,3.56220311,223.59,223.51,7.31]
[1757566001810,3.56220311,223.58,223.51,7.31]
[1757566002109,7.59,223.6,223.51,7.31]
[1757566002309,3.56230969,223.59,223.51,7.31]
[1757566002507,7.59,223.6,223.51,7.31]
[1757566002706,3.56208244,223.59,223.51,7.31]
[1757566002907,7.61829715,223.58,223.54,7.31]
[1757566003711,0.02829715,223.58,223.54,7.31]
[1757566004112,0.02829715,223.58,223.53,0.03212201]
[1757566004313,7.61829715,223.58,223.54,7.31]
[1757566005211,0.02829715,223.58,223.53,0.03212201]
[1757566005412,7.59,223.57,223.53,0.03212201]
[1757566005915,7.59,223.57,223.53,7.34212201]
[1757566006117,7.59,223.57,223.54,7.31]
[1757566015112,0.02829715,223.58,223.54,7.31]
[1757566015318,7.59,223.57,223.53,0.03212201]
[1757566015521,7.59,223.57,223.53,7.34212201]
[1757566015719,0.02829715,223.58,223.54,7.31]
[1757566016019,0.02829715,223.58,223.55,7.31]
[1757566016220,0.02829715,223.58,223.54,2.57477162]
[1757566016618,0.02829715,223.58,223.55,7.31]
[1757566016923,0.02829715,223.58,223.54,2.57477162]
[1757566017123,0.02829715,223.58,223.55,7.6]
[1757566017320,0.02829715,223.58,223.54,2.57477162]
[1757566017726,0.02829715,223.58,223.55,7.6]
[1757566018025,0.02829715,223.58,223.54,2.57477162]
[1757566018425,0.02829715,223.58,223.55,7.6]
[1757566019522,0.02829715,223.58,223.54,2.57477162]
[1757566019726,0.02829715,223.58,223.55,7.6]
[1757566020721,0.02829715,223.58,223.54,2.57477162]
[1757566021330,0.02829715,223.58,223.55,7.6]
[1757566021526,0.02829715,223.58,223.54,2.57477162]
[1757566021729,0.02829715,223.58,223.55,7.6]
[1757566022028,7.55,223.67,223.58,7.6]
[1757566022225,3.54781838,223.66,223.58,7.6]
[1757566022426,3.54781838,223.65,223.58,7.6]
[1757566022630,3.54781838,223.64,223.58,7.6]
[1757566022928,7.55,223.67,223.58,7.6]
[1757566023121,3.54766116,223.66,223.58,7.6]
[1757566023324,3.54766116,223.65,223.6,0.03424074]
[1757566023526,7.55,223.67,223.61,7.6]
[1757566023826,3.54725581,223.66,223.61,7.6]
[1757566024029,7.55,223.71,223.61,7.6]
[1757566024231,3.54707609,223.7,223.61,7.6]
[1757566024530,3.54707609,223.69,223.63,0.03109882]
[1757566024731,7.55,223.71,223.63,0.03109882]
[1757566024926,3.54629774,223.7,223.63,0.03109882]
[1757566025228,3.54629774,223.69,223.63,0.03109882]
[1757566025528,7.55,223.71,223.63,0.03109882]
[1757566025717,2.57477162,223.74,223.63,0.03109882]
[1757566025718,3.54545385,223.7,223.63,0.03109882]
[1757566025917,11.09545385,223.69,223.63,0.03109882]
[1757566026129,7.55,223.69,223.63,0.03109882]
[1757566032339,7.55,223.69,223.63,1.67739165]
[1757566035940,9.19629283,223.69,223.63,0.03109882]
[1757566038441,9.19629283,223.64,223.63,0.03109882]
[1757566043545,7.55,223.64,223.63,0.03109882]
[1757566051238,9.19629283,223.64,223.63,0.03109882]
[1757566051441,11.09064133,223.64,223.57,7.56]
[1757566051643,7.55,223.64,223.58,1.64629283]
[1757566053550,7.55,223.64,223.57,7.56]
[1757566053750,7.55,223.64,223.58,1.64629283]
[1757566055550,7.55,223.64,223.57,7.56]
[1757566055744,7.55,223.64,223.58,1.64629283]
[1757566060156,7.55,223.64,223.57,7.56]
[1757566060354,7.55,223.64,223.57,9.20629283]
[1757566064458,1.64629283,223.61,223.53,5.01687526]
[1757566064758,7.11,223.56,223.52,7.56]
[1757566064959,7.11,223.56,223.5,2.05811951]
[1757566068056,7.11,223.54,223.5,2.05811951]
[1757566068357,1.64629283,223.55,223.5,2.05811951]
[1757566068759,7.11,223.54,223.5,2.05811951]
[1757566069154,1.64629283,223.56,223.5,2.05811951]
[1757566069357,7.11,223.55,223.5,2.05811951]
[1757566069857,1.64629283,223.56,223.5,2.05811951]
[1757566070061,1.64629283,223.54,223.5,2.05811951]
[1757566070254,7.11,223.53,223.5,2.05811951]
[1757566070459,1.64629283,223.54,223.5,2.05811951]
[1757566070661,7.11,223.53,223.5,2.05811951]
[1757566070859,1.64629283,223.52,223.5,2.05811951]
[1757566071160,7.11,223.51,223.5,2.05811951]
[1757566072959,7.55,223.51,223.5,2.05811951]
[1757566073162,12.72672882,223.51,223.41,7.56]
[1757566073359,8.75629283,223.49,223.41,7.56]
[1757566073553,7.11,223.49,223.44,7.56]
[1757566073756,7.11,223.49,223.43,1.64629283]
[1757566073956,7.11,223.51,223.43,9.20629283]
[1757566078663,1.64629283,223.5,223.43,9.20629283]
[1757566079366,1.64629283,223.5,223.43,7.56]
[1757566082468,7.24,223.49,223.43,7.56]
[1757566084465,7.24,223.52,223.44,1.64629283]
[1757566084765,7.24,223.56,223.49,7.3]
[1757566084965,1.64629283,223.6,223.52,1.64629283]
[1757566085170,3.52520631,223.59,223.52,1.64629283]
[1757566085369,8.88629283,223.6,223.52,1.64629283]
[1757566085671,3.52528836,223.59,223.52,1.64629283]
[1757566085971,7.24,223.59,223.52,1.64629283]
[1757566087771,7.24,223.59,223.54,1.64629283]
[1757566087974,7.24,223.59,223.55,7.3]
[1757566088175,7.24,223.59,223.54,1.64629283]
[1757566088475,7.24,223.59,223.55,7.3]
[1757566088774,7.24,223.61,223.55,7.3]
[1757566091569,8.88629283,223.61,223.55,7.3]
[1757566092378,7.24,223.61,223.51,7.3]
[1757566105293,3.52251574,223.6,223.51,7.3]
[1757566105493,7.24,223.61,223.51,7.3]
[1757566105792,3.52250152,223.6,223.51,7.3]
[1757566105992,7.24,223.61,223.51,7.3]
[1757566106193,3.52192873,223.6,223.51,7.3]
[1757566106396,7.24,223.61,223.51,7.3]
[1757566106595,3.52273301,223.6,223.51,7.3]
[1757566106789,7.24,223.61,223.51,7.3]
[1757566106995,7.24,223.59,223.51,7.3]
[1757566115898,7.52,223.57,223.45,7.54]
[1757566116102,7.52,223.55,223.45,7.54]
[1757566117400,7.52,223.51,223.4,7.54]
[1757566117601,10.0949765,223.49,223.4,7.54]
[1757566117800,3.52233245,223.48,223.35,7.54]
[1757566118002,11.04235908,223.47,223.35,7.54]
[1757566118303,7.52,223.45,223.35,7.54]
[1757566126207,7.52,223.43,223.35,7.54]
[1757566126804,7.52,223.43,223.3,4.63493933]
[1757566127010,7.52,223.43,223.31,7.54]
[1757566129806,0.02872208,223.39,223.35,0.03065768]
[1757566130208,7.52,223.38,223.35,0.03065768]
[1757566130403,0.02872208,223.39,223.35,0.03065768]
[1757566130712,7.52,223.38,223.35,0.03065768]
[1757566130912,0.02872208,223.39,223.35,0.03065768]
[1757566131207,7.52,223.38,223.35,0.03065768]
[1757566132202,0.02872208,223.39,223.35,0.03065768]
[1757566132604,7.52,223.38,223.35,0.03065768]
[1757566133203,0.02872208,223.39,223.35,0.03065768]
[1757566133510,7.52,223.38,223.35,0.03065768]
[1757566133910,0.02872208,223.39,223.35,0.03065768]
[1757566134613,7.52,223.38,223.35,0.03065768]
[1757566134910,0.02872208,223.39,223.35,0.03065768]
[1757566135115,7.52,223.38,223.35,0.03065768]
[1757566135314,0.02872208,223.39,223.35,0.03065768]
[1757566135614,7.52,223.38,223.35,0.03065768]
[1757566135912,0.02872208,223.39,223.35,0.03065768]
[1757566136313,7.52,223.38,223.35,0.03065768]
[1757566138909,7.02,223.38,223.35,0.03065768]
[1757566139104,0.02872208,223.39,223.35,0.03065768]
[1757566139310,7.02,223.38,223.35,0.03065768]
[1757566140413,0.02872208,223.39,223.35,0.03065768]
[1757566140712,7.02,223.38,223.35,0.03065768]
[1757566141917,0.02872208,223.39,223.35,0.03065768]
[1757566142110,7.02,223.38,223.35,0.03065768]
[1757566142712,0.02872208,223.39,223.35,0.03065768]
[1757566142917,7.02,223.38,223.35,0.03065768]
[1757566143920,9.5949765,223.38,223.3,2.05996283]
[1757566150326,7.02,223.38,223.31,7.55]
[1757566153630,0.02872208,223.39,223.31,7.55]
[1757566154327,0.02872208,223.39,223.33,1.65071647]
[1757566154526,0.02872208,223.39,223.3,2.05996283]
[1757566154732,0.02872208,223.39,223.33,7.55]
[1757566161437,8.67071647,223.38,223.31,7.55]
[1757566161836,1.65071647,223.36,223.3,2.05996283]
[1757566162036,1.65071647,223.36,223.31,7.55]
[1757566162236,1.65071647,223.36,223.3,2.05996283]
[1757566162436,1.65071647,223.36,223.31,7.55]
[1757566162643,1.65071647,223.36,223.3,2.05996283]
[1757566163331,1.65071647,223.36,223.31,7.55]
[1757566163532,0.02872208,223.39,223.36,7.55]
[1757566163738,0.02872208,223.39,223.38,7.55]
[1757566165146,0.02872208,223.39,223.38,9.20071647]
[1757566167349,7.06,223.5,223.39,7.17]
[1757566167551,1.65071647,223.53,223.45,7.17]
[1757566167552,6.85671515,223.49,223.45,7.17]
[1757566167751,3.45788044,223.48,223.45,7.17]
[1757566167952,3.45788044,223.47,223.45,7.17]
[1757566168154,1.65071647,223.53,223.44,8.82071647]
[1757566168355,6.85608646,223.52,223.44,8.82071647]
[1757566168556,6.85608646,223.51,223.44,8.82071647]
[1757566168849,6.85608646,223.5,223.44,8.82071647]
[1757566169051,6.85608646,223.49,223.45,7.17]
[1757566169251,3.45756336,223.48,223.45,7.17]
[1757566169451,7.06,223.52,223.45,7.17]
[1757566169654,6.85470527,223.51,223.45,7.17]
[1757566169852,13.91470527,223.5,223.44,8.82071647]
[1757566170052,3.45686682,223.49,223.45,7.17]
[1757566170252,3.45686682,223.48,223.45,7.17]
[1757566170558,7.06,223.5,223.44,7.17]
[1757566170751,3.4561351,223.49,223.43,1.65071647]
[1757566170946,3.4561351,223.48,223.43,1.65071647]
[1757566171156,8.71071647,223.51,223.44,7.17]
[1757566171357,6.85193316,223.5,223.44,7.17]
[1757566171552,3.45546883,223.49,223.44,7.17]
[1757566171859,8.71071647,223.51,223.44,7.17]
[1757566172046,6.85193316,223.5,223.44,7.17]
[1757566172250,8.71071647,223.51,223.43,1.65071647]
[1757566172251,3.45546883,223.49,223.43,1.65071647]
[1757566172452,8.71071647,223.51,223.44,7.17]
[1757566172651,3.45450517,223.5,223.44,7.17]
[1757566172852,3.45450517,223.49,223.43,1.65071647]
[1757566173057,8.71071647,223.51,223.45,0.03232597]
[1757566173355,7.09363793,223.49,223.45,7.20232597]
[1757566173558,7.09363793,223.49,223.46,7.17]
[1757566173955,0.03363793,223.49,223.45,0.03232597]
[1757566174155,0.03363793,223.49,223.46,7.17]
[1757566174357,0.03363793,223.49,223.45,1.68304244]
[1757566175356,0.03363793,223.49,223.46,7.17]
[1757566175856,0.03363793,223.49,223.45,1.68304244]
[1757566176352,0.03363793,223.49,223.46,7.17]
[1757566176556,0.03363793,223.49,223.45,1.68304244]
[1757566176753,0.03363793,223.49,223.46,7.17]
[1757566177153,0.03363793,223.49,223.45,1.68304244]
[1757566177755,0.03363793,223.49,223.46,7.17]
[1757566178956,0.03363793,223.49,223.45,1.68304244]
[1757566179655,0.03363793,223.49,223.46,7.17]
[1757566180958,0.03363793,223.49,223.46,1.65071647]
[1757566181459,0.03363793,223.49,223.47,7.17]
[1757566181758,0.03363793,223.49,223.46,1.65071647]
[1757566182160,0.03363793,223.49,223.47,7.17]
[1757566182550,0.03363793,223.49,223.46,7.17]
[1757566182854,0.03363793,223.49,223.45,1.68304244]
[1757566183263,0.03363793,223.49,223.46,7.17]
[1757566183450,0.03363793,223.49,223.45,1.68304244]
[1757566183759,0.03363793,223.49,223.46,7.17]
[1757566183958,0.03363793,223.49,223.45,1.68304244]
[1757566184356,0.03363793,223.49,223.46,7.17]
[1757566184553,0.03363793,223.49,223.45,1.68304244]
[1757566185148,0.03363793,223.49,223.46,7.17]
[1757566185359,0.03363793,223.49,223.45,1.68304244]
[1757566186062,0.03363793,223.49,223.46,7.17]
[1757566186463,0.03363793,223.49,223.45,1.68304244]